[Event "Israeli Open Championship 2019"]
[Site "Jerusalem"]
[Date "2019.12.12"]
[Round "1.3"]
[White "Goni Ducay, Victor M."]
[Black "Bulkovstein, David"]
[Result "1-0"]
[ECO "A04"]
[WhiteElo "2187"]
[BlackElo "1889"]
[Annotator "ChessBase"]
[PlyCount "79"]
[EventDate "2019.12.12"]
[EventType "swiss"]
[EventCountry "ISR"]
[SourceTitle "playchess.com"]
[Source "ChessBase"]
[SourceQuality "1"]
[TimeControl "5400+30"]

1. Nf3 {[%emt 0:00:00]} f5 {[%emt 0:00:00]} 2. d3 {[%emt 0:00:00]} Nf6 {[%emt 0:00:00]} 3. e4 {[%emt 0:00:00]} d6 {[%emt 0:05:16]} 4. exf5 Bxf5 5. d4 {[%emt 0:00:34]} e6 {[%emt 0:19:13]} 6. Bd3 {[%emt 0:01:25]} Bxd3 {[%emt 0:07:21]} 7. Qxd3 {[%emt 0:00:06]} Nc6 {[%emt 0:01:08]} 8. Qb3 {[%emt 0:02:51]} Qd7 {[%emt 0:02:38]} 9. Qxb7 {[%emt 0:00:45]} Rb8 {[%emt 0:00:23]} 10. Qa6 {[%emt 0:00:02]} Be7 {[%emt 0:03:48]} 11. O-O {[%emt 0:00:46]} O-O {[%emt 0:00:22]} 12. c3 {[%emt 0:01:50]} Nd5 {[%emt 0:04:27]} 13. Qd3 {[%emt 0:06:48]} Rf5 {[%emt 0:05:12]} 14. Re1 {[%emt 0:04:06]} Rbf8 {[%emt 0:04:34]} 15. Qe4 {[%emt 0:00:34]} Nd8 {[%emt 0:04:37]} 16. Be3 {[%emt 0:16:28]} Qb5 {[%emt 0:11:49]} 17. Qc2 {[%emt 0:03:22]} Qe8 {[%emt 0:03:32]} 18. Qe2 {[%emt 0:01:08]} Qh5 {[%emt 0:07:55]} 19. Nbd2 {[%emt 0:01:44]} Nf6 {[%emt 0:06:22]} 20. h3 {[%emt 0:00:56]} Nd5 {[%emt 0:04:15]} 21. Nh2 {[%emt 0:16:42]} Qf7 {[%emt 0:02:55]} 22. Ndf3 {[%emt 0:00:47]} Rh5 {[%emt 0:01:06]} 23. Bd2 {[%emt 0:00:47]} h6 {[%emt 0:01:41]} 24. Qe4 {[%emt 0:05:17]} Rf5 {[%emt 0:00:40]} 25. Re2 {[%emt 0:10:38]} c6 {[%emt 0:00:59]} 26. Rae1 {[%emt 0:00:46]} Nf4 {[%emt 0:01:33]} 27. Bxf4 {[%emt 0:00:17]} Rxf4 {[%emt 0:00:03]} 28. Qd3 {[%emt 0:04:23]} a5 {[%emt 0:00:37]} 29. Re4 {[%emt 0:02:05]} Rf5 {[%emt 0:00:27]} 30. Nf1 {[%emt 0:00:33]} Rb5 {[%emt 0:00:48]} 31. b3 {[%emt 0:00:43]} Bf6 {[%emt 0:00:45]} 32. Ng3 {[%emt 0:01:00]} Re8 {[%emt 0:00:40]} 33. c4 {[%emt 0:02:23]} Rb7 {[%emt 0:00:18]} 34. Rf4 {[%emt 0:01:44]} Qd7 {[%emt 0:01:03]} 35. Qg6 {[%emt 0:01:22]} Rf8 {[%emt 0:00:21]} 36. Nh5 {[%emt 0:00:13]} Bg5 {[%emt 0:00:36]} 37. Nxg5 {[%emt 0:00:55]} Rxf4 {[%emt 0:00:22]} 38. Qh7+ {[%emt 0:00:20]} Kf8 {[%emt 0:00:15]} 39. Qh8+ {[%emt 0:00:06]} Ke7 {[%emt 0:00:18]} 40. Nxf4 {[%emt 0:00:06]} 1-0

[Event "Israeli Open Championship 2019"]
[Site "Jerusalem"]
[Date "2019.12.12"]
[Round "1.4"]
[White "Uritsky, Yonathan"]
[Black "Baron, Tal"]
[Result "1-0"]
[ECO "B68"]
[WhiteElo "1881"]
[BlackElo "2541"]
[Annotator "RC"]
[PlyCount "65"]
[EventDate "2019.12.12"]
[EventType "swiss"]
[EventCountry "ISR"]
[SourceTitle "playchess.com"]
[Source "ChessBase"]
[SourceQuality "1"]
[TimeControl "5400+30"]

1. e4 {[%emt 0:00:00]} c5 {[%emt 0:00:16]} 2. Nf3 {[%emt 0:00:00]} Nc6 {[%emt 0:00:09]} 3. d4 {[%emt 0:00:13]} cxd4 {[%emt 0:00:02]} 4. Nxd4 {[%emt 0:00:12]} Nf6 {[%emt 0:00:05]} 5. Nc3 {[%emt 0:00:15]} d6 {[%emt 0:00:07]} 6. Bg5 {[%emt 0:00:13]} e6 {[%emt 0:00:02]} 7. Qd2 {[%emt 0:00:44]} a6 {[%emt 0:00:03]} 8. O-O-O {[%emt 0:00:48]} Bd7 {[%emt 0:03:19]} 9. f4 {[%emt 0:01:56]} Be7 {[%emt 0:00:06]} 10. Be2 {[%emt 0:01:42]} Qc7 {[%emt 0:33:57]} 11. Bf3 {[%emt 0:02:28]} Rd8 {[%emt 0:10:53]} 12. Rhe1 {[%emt 0:03:08]} h6 {[%emt 0:02:16]} 13. Bh4 {[%emt 0:01:16]} Nxd4 {[%emt 0:07:10]} 14. Qxd4 {[%emt 0:00:13]} Bc6 {[%emt 0:00:13]} 15. Bf2 {[%emt 0:01:47]} O-O {[%emt 0:00:30]} 16. g4 {[%emt 0:03:02]} e5 {[%emt 0:06:10]} 17. Qb6 {[%emt 0:02:36]} Qc8 {[%emt 0:01:13]} 18. f5 {[%emt 0:05:15]} Nd7 {[%emt 0:00:07]} 19. Qa5 {[%emt 0:01:08]} Rfe8 {[%emt 0:03:27]} 20. h4 {[%emt 0:00:53]} b6 {[%emt 0:00:19]} 21. Bxb6 {[%emt 0:02:34]} Nxb6 {[%emt 0:00:12]} 22. Qxb6 {[%emt 0:00:10]} Bxh4 {[%emt 0:00:04]} 23. Rh1 {[%emt 0:00:36]} Bg5+ {[%emt 0:00:03]} 24. Kb1 {[%emt 0:00:13]} Re7 {[%emt 0:00:21]} 25. Be2 {[%emt 0:00:54]} Rb7 {[%emt 0:02:35]} 26. Qxa6 {[%emt 0:00:24]} Be3 {[%emt 0:00:43]} 27. Rh3 {[%emt 0:12:53]} Bd4 {[%emt 0:00:37]} 28. g5 {[%emt 0:01:26]} hxg5 {[%emt 0:03:37]} 29. Rdh1 {[%emt 0:00:26]} Kf8 {[%emt 0:00:59]} 30. Rh8+ {[%emt 0:03:45]} Ke7 {[%emt 0:00:02]} 31. Rxd8 {[%emt 0:01:23]} Kxd8 {[%emt 0:00:10]} 32. Rh8+ {[%emt 0:00:07]} Be8 {[%emt 0:00:05]} 33. Bb5 {[%emt 0:00:39]} 1-0

[Event "Israeli Open Championship 2019"]
[Site "Jerusalem"]
[Date "2019.12.12"]
[Round "1.8"]
[White "Sobel, Alon"]
[Black "Gorodetzky, David"]
[Result "0-1"]
[ECO "E32"]
[WhiteElo "1804"]
[BlackElo "2483"]
[Annotator "ChessBase"]
[PlyCount "108"]
[EventDate "2019.12.12"]
[EventType "swiss"]
[EventCountry "ISR"]
[SourceTitle "playchess.com"]
[Source "ChessBase"]
[SourceQuality "1"]
[TimeControl "5400+30"]

1. d4 {[%emt 0:00:00]} Nf6 {[%emt 0:00:00]} 2. c4 {[%emt 0:00:00]} e6 {[%emt 0:00:00]} 3. Nc3 {[%emt 0:00:00]} Bb4 {[%emt 0:01:55]} 4. Qc2 {[%emt 0:00:00]} O-O {[%emt 0:01:49]} 5. Bg5 {[%emt 0:01:02]} d6 {[%emt 0:03:04]} 6. Nf3 {[%emt 0:00:46]} Nbd7 {[%emt 0:01:24]} 7. e3 {[%emt 0:02:10]} b6 {[%emt 0:07:11]} 8. Be2 {[%emt 0:01:49]} Bb7 {[%emt 0:00:30]} 9. O-O {[%emt 0:00:30]} Bxc3 {[%emt 0:00:30]} 10. bxc3 {[%emt 0:00:30]} c5 {[%emt 0:10:33]} 11. Rac1 {[%emt 0:06:08]} Qc7 {[%emt 0:03:13]} 12. Nd2 {[%emt 0:03:36]} Rfe8 {[%emt 0:06:28]} 13. f3 {[%emt 0:07:40]} Rac8 {[%emt 0:08:10]} 14. e4 {[%emt 0:03:55]} cxd4 {[%emt 0:10:55]} 15. cxd4 {[%emt 0:00:21]} e5 {[%emt 0:00:02]} 16. Nb3 {[%emt 0:04:46]} h6 {[%emt 0:00:30]} 17. Bxf6 {[%emt 0:00:30]} Nxf6 {[%emt 0:03:46]} 18. Qb2 {[%emt 0:11:49]} Qe7 {[%emt 0:03:25]} 19. Na1 {[%emt 0:08:32]} Nh5 {[%emt 0:02:46]} 20. g3 {[%emt 0:00:52]} Qg5 {[%emt 0:04:21]} 21. d5 {[%emt 0:05:24]} Nf4 22. Kf2 {[%emt 0:01:41]} Nxe2 {[%emt 0:14:48]} 23. Qxe2 {[%emt 0:00:36]} Ba6 24. Nb3 {[%emt 0:01:07]} Rc7 25. Rc2 {[%emt 0:38:46]} Rec8 {[%emt 0:17:10]} 26. Rfc1 {[%emt 0:00:00]} Qd8 {[%emt 0:00:00]} 27. Qd3 {[%emt 0:00:00]} Qd7 28. Nd2 {[%emt 0:01:30]} Rf8 {[%emt 0:00:00]} 29. Nf1 {[%emt 0:00:30]} Bc8 {[%emt 0:00:00]} 30. Ne3 {[%emt 0:00:00]} Qh3 {[%emt 0:00:00]} 31. Kg1 {[%emt 0:00:00]} f5 32. Nd1 {[%emt 0:01:30]} Rcf7 {[%emt 0:00:00]} 33. Nf2 {[%emt 0:00:00]} Qh5 {[%emt 0:00:00]} 34. Re1 {[%emt 0:01:00]} fxe4 {[%emt 0:02:05]} 35. fxe4 {[%emt 0:00:00]} Rxf2 {[%emt 0:00:15]} 36. Rxf2 Rxf2 {[%emt 0:00:02]} 37. Kxf2 Qxh2+ {[%emt 0:03:38]} 38. Ke3 {[%emt 0:00:00]} Bg4 {[%emt 0:00:30]} 39. Ra1 {[%emt 0:00:00]} h5 {[%emt 0:00:00]} 40. a4 {[%emt 0:00:00]} h4 41. a5 {[%emt 0:03:30]} h3 {[%emt 0:00:10]} 42. Qf1 {[%emt 0:00:00]} Qxg3+ {[%emt 0:00:32]} 43. Kd2 {[%emt 0:00:00]} h2 {[%emt 0:00:50]} 44. axb6 {[%emt 0:00:00]} axb6 {[%emt 0:00:00]} 45. Ra8+ {[%emt 0:00:00]} Kh7 46. Qf8 {[%emt 0:02:30]} Qg2+ {[%emt 0:00:15]} 47. Kc3 {[%emt 0:00:00]} Qf3+ {[%emt 0:00:07]} 48. Qxf3 {[%emt 0:00:00]} Bxf3 {[%emt 0:00:00]} 49. Ra1 Bg4 50. Ra8 {[%emt 0:00:00]} Bf3 {[%emt 0:00:44]} 51. Ra1 {[%emt 0:00:00]} h1=Q {[%emt 0:00:30]} 52. Rxh1+ {[%emt 0:00:00]} Bxh1 {[%emt 0:00:03]} 53. Kb4 {[%emt 0:00:09]} Bxe4 {[%emt 0:00:06]} 54. Kb5 {[%emt 0:00:17]} Bd3 {[%emt 0:00:03]} 0-1

[Event "Israeli Open Championship 2019"]
[Site "Jerusalem"]
[Date "2019.12.12"]
[Round "1.9"]
[White "Dvoirys, Semen I."]
[Black "Gunders, Elad"]
[Result "1-0"]
[ECO "B48"]
[WhiteElo "2467"]
[BlackElo "1803"]
[Annotator "ChessBase"]
[PlyCount "51"]
[EventDate "2019.12.12"]
[EventType "swiss"]
[EventCountry "ISR"]
[SourceTitle "playchess.com"]
[Source "ChessBase"]
[SourceQuality "1"]
[TimeControl "5400+30"]

1. e4 {[%emt 0:00:00]} c5 {[%emt 0:00:00]} 2. Nf3 {[%emt 0:00:00]} e6 {[%emt 0:00:00]} 3. d4 {[%emt 0:00:00]} cxd4 {[%emt 0:00:00]} 4. Nxd4 {[%emt 0:00:00]} Nf6 {[%emt 0:00:03]} 5. Nc3 {[%emt 0:00:00]} Nc6 {[%emt 0:00:10]} 6. a3 {[%emt 0:00:39]} Be7 {[%emt 0:02:46]} 7. Be2 {[%emt 0:01:17]} a6 {[%emt 0:01:54]} 8. O-O {[%emt 0:00:41]} O-O {[%emt 0:01:30]} 9. Be3 {[%emt 0:00:31]} Qc7 {[%emt 0:03:33]} 10. f4 {[%emt 0:00:36]} d6 {[%emt 0:00:39]} 11. Kh1 {[%emt 0:05:30]} b5 {[%emt 0:08:15]} 12. Qe1 {[%emt 0:00:13]} Rd8 {[%emt 0:03:40]} 13. Nxc6 {[%emt 0:11:51]} Qxc6 {[%emt 0:00:12]} 14. e5 {[%emt 0:00:06]} Nd5 {[%emt 0:05:46]} 15. Nxd5 {[%emt 0:02:34]} exd5 {[%emt 0:00:10]} 16. Bd3 {[%emt 0:02:02]} dxe5 {[%emt 0:25:04]} 17. fxe5 {[%emt 0:00:07]} d4 {[%emt 0:01:24]} 18. Qf2 {[%emt 0:18:24]} dxe3 {[%emt 0:11:17]} 19. Qxf7+ {[%emt 0:00:13]} Kh8 {[%emt 0:00:03]} 20. Qxe7 {[%emt 0:00:10]} Bb7 {[%emt 0:05:44]} 21. Rf3 {[%emt 0:01:42]} Re8 {[%emt 0:07:34]} 22. Qg5 {[%emt 0:04:26]} Qc7 {[%emt 0:08:32]} 23. Rxe3 {[%emt 0:01:07]} Rf8 {[%emt 0:00:13]} 24. Rh3 {[%emt 0:05:42]} Qf7 {[%emt 0:02:33]} 25. Rxh7+ {[%emt 0:00:38]} Kg8 {[%emt 0:00:01]} 26. Rh8+ {[%emt 0:44:31]} 1-0

[Event "Israeli Open Championship 2019"]
[Site "Jerusalem"]
[Date "2019.12.12"]
[Round "1.10"]
[White "Yehoshua, Azgad"]
[Black "Birnboim, Nathan"]
[Result "0-1"]
[ECO "C01"]
[WhiteElo "1746"]
[BlackElo "2393"]
[Annotator "ChessBase"]
[PlyCount "41"]
[EventDate "2019.12.12"]
[EventType "swiss"]
[EventCountry "ISR"]
[SourceTitle "playchess.com"]
[Source "ChessBase"]
[SourceQuality "1"]
[TimeControl "5400+30"]

1. e4 {[%emt 0:00:00]} e6 {[%emt 0:00:00]} 2. d4 {[%emt 0:00:00]} d5 {[%emt 0:00:00]} 3. exd5 {[%emt 0:00:14]} exd5 {[%emt 0:00:00]} 4. Bd3 {[%emt 0:00:28]} Nc6 {[%emt 0:00:33]} 5. c3 {[%emt 0:02:09]} Bd6 {[%emt 0:00:47]} 6. Ne2 {[%emt 0:00:51]} Qf6 {[%emt 0:01:29]} 7. Na3 {[%emt 0:09:32]} a6 {[%emt 0:04:05]} 8. Ng3 {[%emt 0:17:05]} Kf8 {[%emt 0:30:07]} 9. O-O {[%emt 0:26:48]} h5 {[%emt 0:00:30]} 10. Nc2 {[%emt 0:09:10]} Nce7 {[%emt 0:04:10]} 11. Be3 {[%emt 0:13:58]} Ng6 {[%emt 0:05:30]} 12. f4 {[%emt 0:04:00]} Bg4 {[%emt 0:10:28]} 13. Qd2 {[%emt 0:01:13]} N6e7 {[%emt 0:03:28]} 14. f5 {[%emt 0:02:36]} Bxg3 {[%emt 0:00:54]} 15. hxg3 {[%emt 0:02:40]} Bxf5 {[%emt 0:06:23]} 16. Bxf5 {[%emt 0:05:48]} Nxf5 {[%emt 0:00:17]} 17. Bg5 {[%emt 0:00:35]} Qg6 {[%emt 0:00:43]} 18. Qf4 {[%emt 0:00:45]} Nd6 {[%emt 0:01:43]} 19. Rae1 {[%emt 0:00:43]} Qxc2 {[%emt 0:01:39]} 20. Rf2 {[%emt 0:00:47]} Qg6 {[%emt 0:00:17]} 21. Rfe2 {[%emt 0:01:08] Ke8} 0-1

[Event "Israeli Open Championship 2019"]
[Site "Jerusalem"]
[Date "2019.12.12"]
[Round "1.11"]
[White "Iliaguev, Nisim"]
[Black "Freiman, Mark"]
[Result "1-0"]
[ECO "E07"]
[WhiteElo "2275"]
[BlackElo "1724"]
[Annotator "ChessBase"]
[PlyCount "71"]
[EventDate "2019.12.12"]
[EventType "swiss"]
[EventCountry "ISR"]
[SourceTitle "playchess.com"]
[Source "ChessBase"]
[SourceQuality "1"]
[TimeControl "5400+30"]

1. d4 {[%emt 0:00:00]} Nf6 {[%emt 0:00:00]} 2. c4 {[%emt 0:00:00]} e6 {[%emt 0:00:00]} 3. g3 {[%emt 0:00:04]} d5 {[%emt 0:00:36]} 4. Bg2 {[%emt 0:00:15]} c6 {[%emt 0:01:01]} 5. Nf3 {[%emt 0:00:12]} Be7 {[%emt 0:04:33]} 6. O-O {[%emt 0:00:11]} O-O {[%emt 0:00:21]} 7. Nc3 {[%emt 0:00:23]} Nbd7 {[%emt 0:01:01]} 8. Nd2 {[%emt 0:01:02]} Qb6 {[%emt 0:12:16]} 9. c5 {[%emt 0:05:04]} Qd8 {[%emt 0:01:00]} 10. e4 {[%emt 0:00:34]} dxe4 {[%emt 0:01:04]} 11. Ndxe4 {[%emt 0:01:59]} Nxe4 {[%emt 0:00:27]} 12. Nxe4 {[%emt 0:02:07]} Nf6 {[%emt 0:01:16]} 13. Be3 {[%emt 0:02:34]} Nxe4 {[%emt 0:08:46]} 14. Bxe4 {[%emt 0:00:02]} Bf6 {[%emt 0:01:33]} 15. Qd3 {[%emt 0:04:19]} h6 {[%emt 0:04:22]} 16. b4 {[%emt 0:03:09]} e5 {[%emt 0:05:12]} 17. d5 {[%emt 0:00:30]} cxd5 {[%emt 0:00:08]} 18. Qxd5 {[%emt 0:00:26]} Qxd5 {[%emt 0:07:43]} 19. Bxd5 {[%emt 0:00:02]} Rd8 {[%emt 0:10:29]} 20. Rfd1 {[%emt 0:05:24]} Bg4 {[%emt 0:02:36]} 21. Rd2 {[%emt 0:07:23]} Rab8 {[%emt 0:10:51]} 22. b5 {[%emt 0:02:40]} Rxd5 {[%emt 0:04:12]} 23. Rxd5 {[%emt 0:00:15]} Be6 {[%emt 0:00:24]} 24. Rd2 {[%emt 0:00:39]} Rc8 {[%emt 0:01:25]} 25. Rc1 {[%emt 0:00:21]} b6 {[%emt 0:02:12]} 26. c6 {[%emt 0:01:32]} Be7 {[%emt 0:00:43]} 27. a4 {[%emt 0:02:52]} Bb4 {[%emt 0:02:34]} 28. Rd3 {[%emt 0:02:24]} Bf5 {[%emt 0:02:07]} 29. Rd5 {[%emt 0:01:16]} f6 {[%emt 0:01:03]} 30. Rcd1 {[%emt 0:02:17]} Kf7 {[%emt 0:02:21]} 31. Rd8 {[%emt 0:00:26]} Rc7 {[%emt 0:00:32]} 32. Rb8 {[%emt 0:00:45]} Ke7 {[%emt 0:04:44]} 33. Rb7 {[%emt 0:00:18]} Bd6 {[%emt 0:00:10]} 34. a5 {[%emt 0:00:28]} bxa5 {[%emt 0:06:01]} 35. Bxa7 {[%emt 0:00:11]} Rxb7 {[%emt 0:02:05]} 36. cxb7 {[%emt 0:00:00]} 1-0

[Event "Israeli Open Championship 2019"]
[Site "Jerusalem"]
[Date "2019.12.12"]
[Round "1.12"]
[White "Sobel, Ido"]
[Black "Gorodetzky, Matan"]
[Result "0-1"]
[ECO "B22"]
[WhiteElo "1711"]
[BlackElo "2284"]
[Annotator "ChessBase"]
[PlyCount "118"]
[EventDate "2019.12.12"]
[EventType "swiss"]
[EventCountry "ISR"]
[SourceTitle "playchess.com"]
[Source "ChessBase"]
[SourceQuality "1"]
[TimeControl "5400+30"]

1. e4 {[%emt 0:00:00]} e6 {[%emt 0:00:00]} 2. d4 {[%emt 0:00:30]} d5 {[%emt 0:00:30]} 3. exd5 {[%emt 0:00:30]} exd5 {[%emt 0:00:30]} 4. Bd3 {[%emt 0:00:00]} Nf6 {[%emt 0:00:15]} 5. Nf3 {[%emt 0:00:00]} c5 {[%emt 0:03:06]} 6. c3 {[%emt 0:00:00]} c4 {[%emt 0:00:30]} 7. Bc2 {[%emt 0:00:29]} Bg4 {[%emt 0:10:12]} 8. O-O {[%emt 0:02:41]} Be7 {[%emt 0:01:08]} 9. h3 {[%emt 0:00:30]} Bh5 {[%emt 0:00:30]} 10. Bf4 {[%emt 0:01:56]} O-O {[%emt 0:01:28]} 11. Re1 {[%emt 0:01:36]} Nc6 {[%emt 0:01:12]} 12. Nbd2 {[%emt 0:01:38]} Bd6 {[%emt 0:11:44]} 13. Be5 {[%emt 0:03:30]} Re8 {[%emt 0:14:00]} 14. Qb1 {[%emt 0:00:30]} Bg6 {[%emt 0:00:30]} 15. Re3 {[%emt 0:00:30]} Qc7 {[%emt 0:00:30]} 16. Bxg6 {[%emt 0:00:30]} hxg6 {[%emt 0:00:30]} 17. Qe1 {[%emt 0:06:54]} Ne7 {[%emt 0:09:39]} 18. g4 {[%emt 0:03:58]} Qd7 {[%emt 0:03:57]} 19. Qe2 {[%emt 0:11:09]} Kf8 {[%emt 0:02:12]} 20. Ng5 {[%emt 0:00:30]} Neg8 {[%emt 0:00:30]} 21. Re1 {[%emt 0:00:30]} Be7 {[%emt 0:00:30]} 22. f4 {[%emt 0:00:30]} a5 {[%emt 0:00:30]} 23. Ndf3 {[%emt 0:29:10]} Rec8 {[%emt 0:10:16]} 24. Nh4 {[%emt 0:06:14]} Ne4 {[%emt 0:02:35]} 25. Rxe4 {[%emt 0:09:25]} dxe4 {[%emt 0:00:29]} 26. Qxe4 {[%emt 0:00:50]} Bxg5 {[%emt 0:01:48]} 27. fxg5 {[%emt 0:00:27]} Ne7 {[%emt 0:01:02]} 28. Bxg7+ {[%emt 0:10:43]} Kxg7 {[%emt 0:00:45]} 29. Qxe7 {[%emt 0:00:02]} Qxe7 {[%emt 0:00:26]} 30. Rxe7 {[%emt 0:00:02]} Re8 {[%emt 0:01:10]} 31. Rxe8 {[%emt 0:00:16]} Rxe8 {[%emt 0:00:07]} 32. Kf2 {[%emt 0:00:05]} Re6 {[%emt 0:01:09]} 33. Nf3 {[%emt 0:00:07]} Rb6 {[%emt 0:00:31]} 34. Ke3 {[%emt 0:00:12]} Rxb2 {[%emt 0:00:28]} 35. d5 {[%emt 0:00:07]} Kf8 {[%emt 0:01:19]} 36. Kd4 {[%emt 0:00:13]} Rxa2 {[%emt 0:04:58]} 37. Kxc4 {[%emt 0:00:02]} a4 {[%emt 0:00:11]} 38. Kb4 {[%emt 0:00:51]} Ra1 {[%emt 0:05:06]} 39. Nd4 {[%emt 0:00:59]} a3 {[%emt 0:01:12]} 40. Nc2 {[%emt 0:00:11]} Rd1 {[%emt 0:00:22]} 41. Nxa3 {[%emt 0:02:52]} Rxd5 {[%emt 0:00:02]} 42. Nc4 {[%emt 0:01:38]} Ke7 {[%emt 0:01:04]} 43. Na5 {[%emt 0:00:38]} Rd1 {[%emt 0:00:47]} 44. Kc5 {[%emt 0:01:43]} Rb1 {[%emt 0:00:37]} 45. Nc4 {[%emt 0:00:51]} Rh1 {[%emt 0:03:05]} 46. Ne3 {[%emt 0:02:05]} Rxh3 {[%emt 0:00:26]} 47. Nd5+ {[%emt 0:00:20]} Kd7 {[%emt 0:00:25]} 48. c4 {[%emt 0:01:06]} Rb3 {[%emt 0:00:23]} 49. Kd4 {[%emt 0:00:52]} Ke6 {[%emt 0:01:28]} 50. Nf4+ {[%emt 0:00:52]} Kd6 {[%emt 0:00:18]} 51. c5+ {[%emt 0:00:22]} Kc6 {[%emt 0:00:09]} 52. Nd3 {[%emt 0:01:53]} Rxd3+ {[%emt 0:00:10]} 53. Kxd3 {[%emt 0:00:04]} Kxc5 {[%emt 0:00:04]} 54. Ke4 {[%emt 0:00:11]} b5 {[%emt 0:00:35]} 55. Ke5 {[%emt 0:00:21]} b4 {[%emt 0:00:08]} 56. Kf6 {[%emt 0:00:50]} b3 {[%emt 0:00:05]} 57. Kxf7 {[%emt 0:00:04]} b2 {[%emt 0:00:04]} 58. Kxg6 {[%emt 0:00:05]} b1=Q+ {[%emt 0:00:06]} 59. Kh6 {[%emt 0:00:14]} Kd6 {[%emt 0:00:15]} 0-1

[Event "Israeli Open Championship 2019"]
[Site "Jerusalem"]
[Date "2019.12.12"]
[Round "1.13"]
[White "Friedland, Moshe"]
[Black "Leor, Ephraim"]
[Result "1-0"]
[ECO "B06"]
[WhiteElo "2267"]
[BlackElo "1704"]
[Annotator "ChessBase"]
[PlyCount "65"]
[EventDate "2019.12.12"]
[EventType "swiss"]
[EventCountry "ISR"]
[SourceTitle "playchess.com"]
[Source "ChessBase"]
[SourceQuality "1"]
[TimeControl "5400+30"]

1. e4 {[%emt 0:00:00]} g6 {[%emt 0:00:00]} 2. d4 {[%emt 0:00:05]} Bg7 {[%emt 0:00:00]} 3. Nc3 {[%emt 0:00:07]} d6 {[%emt 0:00:00]} 4. Bg5 {[%emt 0:00:26]} Nd7 {[%emt 0:02:51]} 5. Nf3 {[%emt 0:00:45]} h6 {[%emt 0:02:12]} 6. Bf4 {[%emt 0:01:14]} e5 {[%emt 0:07:57]} 7. dxe5 {[%emt 0:01:20]} dxe5 {[%emt 0:00:20]} 8. Be3 {[%emt 0:02:16]} Ngf6 {[%emt 0:01:04]} 9. h3 {[%emt 0:00:28]} O-O {[%emt 0:00:31]} 10. Qd2 {[%emt 0:00:13]} Kh7 {[%emt 0:01:04]} 11. O-O-O {[%emt 0:00:26]} Qe7 {[%emt 0:00:46]} 12. g4 {[%emt 0:02:20]} Nc5 {[%emt 0:07:03]} 13. Bd3 {[%emt 0:11:20]} Rd8 {[%emt 0:03:09]} 14. Qe2 {[%emt 0:00:06]} c6 {[%emt 0:06:45]} 15. g5 {[%emt 0:00:09]} Ng8 {[%emt 0:01:54]} 16. Bc4 {[%emt 0:05:00]} Ne6 {[%emt 0:09:24]} 17. gxh6 {[%emt 0:02:44]} Bf6 {[%emt 0:04:34]} 18. Rxd8 {[%emt 0:05:56]} Qxd8 {[%emt 0:02:29]} 19. h4 {[%emt 0:04:51]} b5 {[%emt 0:04:41]} 20. Bb3 {[%emt 0:02:42]} a5 {[%emt 0:00:50]} 21. a4 {[%emt 0:03:20]} Nd4 {[%emt 0:09:48]} 22. Bxd4 {[%emt 0:04:54]} exd4 {[%emt 0:00:11]} 23. e5 {[%emt 0:08:34]} dxc3 {[%emt 0:04:26]} 24. exf6 {[%emt 0:00:05]} cxb2+ {[%emt 0:01:42]} 25. Kb1 {[%emt 0:00:05]} Nxh6 {[%emt 0:01:25]} 26. Ng5+ {[%emt 0:02:29]} Kg8 {[%emt 0:00:19]} 27. Rd1 {[%emt 0:02:28]} Qf8 {[%emt 0:04:39]} 28. h5 {[%emt 0:07:39]} Bg4 {[%emt 0:03:04]} 29. f3 {[%emt 0:00:09]} Qa3 {[%emt 0:01:55]} 30. Ba2 {[%emt 0:00:39]} Bf5 {[%emt 0:01:25]} 31. Qe7 {[%emt 0:07:48]} Bxc2+ {[%emt 0:02:37]} 32. Kxc2 {[%emt 0:00:01]} Qxa2 {[%emt 0:00:09]} 33. Rd8+ {[%emt 0:00:08]} 1-0